[Event "White Rook U14 Final 2019"]
[Site "Sochi"]
[Date "2019.06.06"]
[Round "4.6"]
[White "Zhukov, Maksim"]
[Black "Ismagilov, Igor"]
[Result "1-0"]
[ECO "A30"]
[WhiteElo "1986"]
[BlackElo "1803"]
[Annotator "NA RC"]
[PlyCount "105"]
[EventDate "2019.06.02"]
[EventCountry "RUS"]
[SourceTitle "playchess.com"]
[Source "ChessBase"]
[SourceQuality "1"]
[TimeControl "5400+30"]

1. d4 {[%emt 0:00:00]} g6 {[%emt 0:00:00]} 2. Nf3 {[%emt 0:00:00]} Bg7 {[%emt 0:00:00]} 3. c4 {[%emt 0:00:00]} d6 {[%emt 0:00:00]} 4. Nc3 {[%emt 0:00:00]} e6 {[%emt 0:01:09]} 5. g3 {[%emt 0:00:27]} b6 {[%emt 0:01:38]} 6. Bg2 {[%emt 0:00:36]} Bb7 {[%emt 0:00:36]} 7. O-O {[%emt 0:00:48]} Nf6 {[%emt 0:02:23]} 8. b3 {[%emt 0:02:15]} O-O {[%emt 0:03:15]} 9. Bb2 {[%emt 0:01:10]} c5 {[%emt 0:03:30]} 10. e3 {[%emt 0:04:01]} Nc6 {[%emt 0:03:33]} 11. Qd2 {[%emt 0:05:00]} Ne7 {[%emt 0:06:26]} 12. Rfd1 {[%emt 0:02:54]} cxd4 {[%emt 0:10:43]} 13. exd4 {[%emt 0:00:21]} Ne4 {[%emt 0:03:39]} 14. Nxe4 {[%emt 0:00:58]} Bxe4 {[%emt 0:00:04]} 15. Rac1 {[%emt 0:03:25]} Rc8 {[%emt 0:07:05]} 16. Qe2 {[%emt 0:01:49]} d5 {[%emt 0:06:07]} 17. c5 {[%emt 0:01:30]} Nf5 {[%emt 0:08:13]} 18. b4 {[%emt 0:05:10]} Qf6 {[%emt 0:05:40]} 19. Ne5 {[%emt 0:02:53]} Bxg2 {[%emt 0:03:09]} 20. Kxg2 {[%emt 0:00:06]} Qe7 {[%emt 0:01:07]} 21. b5 {[%emt 0:07:16]} Bxe5 {[%emt 0:05:23]} 22. Qxe5 {[%emt 0:00:24]} f6 {[%emt 0:02:39]} 23. Qe2 {[%emt 0:01:06]} Ng7 {[%emt 0:01:08]} 24. Qf3 {[%emt 0:03:06]} Qd7 {[%emt 0:02:50]} 25. c6 {[%emt 0:01:39]} Qc7 {[%emt 0:00:40]} 26. Rc2 {[%emt 0:01:13]} a6 {[%emt 0:04:48]} 27. a4 {[%emt 0:02:35]} axb5 {[%emt 0:00:17]} 28. axb5 {[%emt 0:00:01]} Ra8 {[%emt 0:01:43]} 29. Bc1 {[%emt 0:00:37]} g5 {[%emt 0:00:30]} 30. Ba3 {[%emt 0:02:04]} Rfe8 {[%emt 0:00:44]} 31. Bb4 {[%emt 0:03:11]} Nf5 {[%emt 0:03:04]} 32. Re2 {[%emt 0:00:20]} Ra4 {[%emt 0:01:29]} 33. Rxe6 {[%emt 0:10:26]} Rxe6 {[%emt 0:00:12]} 34. Qxf5 {[%emt 0:00:04]} Qf7 {[%emt 0:04:57]} 35. c7 {[%emt 0:00:26]} Ra8 {[%emt 0:00:24]} 36. Qxd5 {[%emt 0:01:09]} Rc8 {[%emt 0:01:22]} 37. Rc1 {[%emt 0:00:45]} Re7 {[%emt 0:01:30]} 38. Qd8+ {[%emt 0:01:22]} Re8 {[%emt 0:00:03]} 39. Qd6 {[%emt 0:00:07]} Re6 {[%emt 0:00:17]} 40. Qd5 {[%emt 0:01:40]} Re7 {[%emt 0:00:17]} 41. Qxf7+ {[%emt 0:00:27]} Rxf7 {[%emt 0:00:07]} 42. Bd6 {[%emt 0:00:06]} Rd7 {[%emt 0:02:33]} 43. Rc6 {[%emt 0:00:06]} Kf7 {[%emt 0:00:19]} 44. Rxb6 {[%emt 0:00:42]} Rxd6 {[%emt 0:02:33]} 45. Rxd6 {[%emt 0:00:05]} Rxc7 {[%emt 0:00:03]} 46. b6 {[%emt 0:00:29]} Rc3 {[%emt 0:00:36]} 47. Rd8 {[%emt 0:01:26]} Rb3 {[%emt 0:00:49]} 48. Rb8 {[%emt 0:00:08]} Kg6 {[%emt 0:00:05]} 49. b7 {[%emt 0:00:16]} Kf5 {[%emt 0:00:04]} 50. d5 {[%emt 0:00:12]} Kg4 {[%emt 0:02:15]} 51. d6 {[%emt 0:01:26]} f5 {[%emt 0:00:04]} 52. h3+ {[%emt 0:00:04]} Kh5 {[%emt 0:00:03]} 53. d7 {[%emt 0:00:13]} 1-0

[Event "White Rook U14 Final 2019"]
[Site "Sochi"]
[Date "2019.06.06"]
[Round "4.7"]
[White "Khodko, Yurii N."]
[Black "Ermolaev, Ivan"]
[Result "1-0"]
[ECO "B33"]
[WhiteElo "1727"]
[BlackElo "1776"]
[Annotator "NA RC"]
[PlyCount "140"]
[EventDate "2019.06.02"]
[EventCountry "RUS"]
[SourceTitle "playchess.com"]
[Source "ChessBase"]
[SourceQuality "1"]
[TimeControl "5400+30"]

1. e4 {[%emt 0:00:00]} c5 {[%emt 0:00:15]} 2. Nf3 {[%emt 0:00:08]} Nc6 {[%emt 0:00:00]} 3. d4 {[%emt 0:00:32]} cxd4 {[%emt 0:00:08]} 4. Nxd4 {[%emt 0:00:00]} Nf6 {[%emt 0:00:08]} 5. Nc3 {[%emt 0:00:08]} e5 {[%emt 0:00:08]} 6. Ndb5 {[%emt 0:01:12]} d6 {[%emt 0:00:08]} 7. Bg5 {[%emt 0:00:48]} a6 {[%emt 0:00:17]} 8. Na3 {[%emt 0:00:00]} b5 {[%emt 0:00:08]} 9. Nd5 {[%emt 0:00:00]} Be7 {[%emt 0:00:16]} 10. Bxf6 {[%emt 0:00:00]} Bxf6 {[%emt 0:00:08]} 11. c3 {[%emt 0:00:08]} O-O {[%emt 0:00:16]} 12. Nc2 {[%emt 0:00:00]} Bg5 {[%emt 0:00:00]} 13. a4 {[%emt 0:00:08]} bxa4 {[%emt 0:00:00]} 14. Rxa4 {[%emt 0:00:07]} a5 {[%emt 0:00:00]} 15. Bc4 {[%emt 0:00:08]} Ne7 {[%emt 0:00:17]} 16. O-O {[%emt 0:14:16]} Bd7 {[%emt 0:00:08]} 17. Ra2 {[%emt 0:00:57]} Kh8 {[%emt 0:09:29]} 18. b4 {[%emt 0:04:56]} axb4 {[%emt 0:00:33]} 19. Rxa8 {[%emt 0:03:46]} Qxa8 {[%emt 0:00:08]} 20. Nb6 {[%emt 0:02:50]} Qc6 {[%emt 0:00:32]} 21. Nxd7 {[%emt 0:01:20]} Qxd7 {[%emt 0:00:00]} 22. cxb4 {[%emt 0:03:37]} f5 {[%emt 0:00:40]} 23. exf5 {[%emt 0:01:46]} Nxf5 {[%emt 0:00:32]} 24. Qg4 {[%emt 0:07:17]} Bh6 {[%emt 0:08:02]} 25. Ne3 {[%emt 0:04:20]} g6 {[%emt 0:00:54]} 26. Qh3 {[%emt 0:07:20]} Bg5 {[%emt 0:05:38]} 27. b5 {[%emt 0:04:57]} Qc8 {[%emt 0:19:41]} 28. Nxf5 {[%emt 0:02:28]} gxf5 {[%emt 0:03:43]} 29. Qd3 {[%emt 0:01:13]} Qc5 {[%emt 0:00:51]} 30. Rd1 {[%emt 0:00:59]} Be7 {[%emt 0:02:50]} 31. Be6 {[%emt 0:03:32]} e4 {[%emt 0:03:04]} 32. Qd4+ {[%emt 0:04:30]} Qxd4 {[%emt 0:04:28]} 33. Rxd4 {[%emt 0:00:00]} Rb8 {[%emt 0:05:07]} 34. Bxf5 {[%emt 0:03:56]} Rxb5 {[%emt 0:00:07]} 35. Bxe4 {[%emt 0:00:00]} Kg7 {[%emt 0:00:20]} 36. g3 {[%emt 0:00:27]} h6 {[%emt 0:00:36]} 37. Bd3 {[%emt 0:00:49]} Re5 {[%emt 0:00:34]} 38. h4 {[%emt 0:00:41]} Bf8 {[%emt 0:02:52]} 39. Kg2 {[%emt 0:00:50]} Kf6 {[%emt 0:01:27]} 40. Rf4+ {[%emt 0:01:09]} Kg7 {[%emt 0:03:25]} 41. Ra4 {[%emt 0:03:48]} Kf6 {[%emt 0:00:30]} 42. Ra8 {[%emt 0:00:36]} Kg7 {[%emt 0:00:37]} 43. Bc4 {[%emt 0:01:21]} Re4 {[%emt 0:00:53]} 44. Ba2 {[%emt 0:00:58]} Re5 {[%emt 0:02:53]} 45. Ra7+ {[%emt 0:01:18]} Re7 {[%emt 0:00:16]} 46. Ra4 {[%emt 0:01:08]} Re5 {[%emt 0:03:38]} 47. Rg4+ {[%emt 0:00:06]} Kf6 {[%emt 0:00:21]} 48. Rf4+ {[%emt 0:00:41]} Rf5 {[%emt 0:00:35]} 49. Kf3 {[%emt 0:01:21]} Be7 {[%emt 0:00:30]} 50. g4 {[%emt 0:00:45]} Rxf4+ {[%emt 0:00:05]} 51. Kxf4 {[%emt 0:00:05]} Kg6 {[%emt 0:01:06]} 52. Bb1+ {[%emt 0:01:09]} Kg7 {[%emt 0:00:49]} 53. g5 {[%emt 0:00:43]} d5 {[%emt 0:01:06]} 54. Kf5 {[%emt 0:01:20]} Bd8 {[%emt 0:00:39]} 55. f4 {[%emt 0:00:44]} Be7 {[%emt 0:01:47]} 56. Ke6 {[%emt 0:01:15]} hxg5 {[%emt 0:01:08]} 57. hxg5 {[%emt 0:00:13]} Kf8 {[%emt 0:00:37]} 58. Kxd5 {[%emt 0:00:26]} Kg7 {[%emt 0:00:36]} 59. Ke6 {[%emt 0:00:52]} Kf8 {[%emt 0:00:15]} 60. Ba2 {[%emt 0:06:50]} Bd8 {[%emt 0:00:24]} 61. Bd5 {[%emt 0:00:18]} Kg7 {[%emt 0:00:25]} 62. Be4 {[%emt 0:02:37]} Ba5 {[%emt 0:02:06]} 63. f5 {[%emt 0:00:23]} Bd2 {[%emt 0:00:23]} 64. f6+ {[%emt 0:01:28]} Kg8 {[%emt 0:01:04]} 65. g6 {[%emt 0:00:07]} Bh6 {[%emt 0:00:07]} 66. Kf5 {[%emt 0:00:09]} Bf8 {[%emt 0:02:14]} 67. Bb1 {[%emt 0:01:17]} Bh6 {[%emt 0:00:30]} 68. Ba2+ {[%emt 0:00:39]} Kf8 {[%emt 0:00:46]} 69. Ke6 {[%emt 0:00:04]} Kg8 {[%emt 0:00:00]} 70. Ke7+ {[%emt 0:00:00]} Kh8 {[%emt 0:00:00]} 1-0

[Event "White Rook U14 Final 2019"]
[Site "Sochi"]
[Date "2019.06.06"]
[Round "4.8"]
[White "Kuzmina, Varvara"]
[Black "Loviagina, Dariana"]
[Result "1-0"]
[ECO "D52"]
[WhiteElo "1190"]
[BlackElo "1297"]
[Annotator "NA RC"]
[PlyCount "93"]
[EventDate "2019.06.02"]
[EventCountry "RUS"]
[SourceTitle "playchess.com"]
[Source "ChessBase"]
[SourceQuality "1"]
[TimeControl "5400+30"]

1. d4 {[%emt 0:00:00]} d5 {[%emt 0:00:00]} 2. c4 {[%emt 0:00:00]} e6 {[%emt 0:00:00]} 3. Nc3 {[%emt 0:00:00]} Nf6 {[%emt 0:00:00]} 4. Nf3 {[%emt 0:00:00]} c6 {[%emt 0:00:12]} 5. Bg5 {[%emt 0:00:16]} Nbd7 {[%emt 0:00:13]} 6. e3 {[%emt 0:00:48]} Qa5 {[%emt 0:00:10]} 7. Qd2 {[%emt 0:00:29]} Bb4 {[%emt 0:00:28]} 8. Bd3 {[%emt 0:00:46]} dxc4 {[%emt 0:00:16]} 9. Bc2 {[%emt 0:00:55]} Nd5 {[%emt 0:00:20]} 10. O-O {[%emt 0:01:41]} Bxc3 {[%emt 0:01:50]} 11. bxc3 {[%emt 0:03:38]} Qxc3 {[%emt 0:00:32]} 12. e4 {[%emt 0:00:47]} Qxd2 {[%emt 0:00:16]} 13. Nxd2 {[%emt 0:00:06]} N5b6 {[%emt 0:00:30]} 14. Rac1 {[%emt 0:01:18]} c3 {[%emt 0:02:11]} 15. Nb1 {[%emt 0:01:05]} h6 {[%emt 0:00:31]} 16. Be3 {[%emt 0:01:36]} O-O {[%emt 0:01:50]} 17. Nxc3 {[%emt 0:00:54]} e5 {[%emt 0:00:57]} 18. Bb3 {[%emt 0:01:32]} Rd8 {[%emt 0:05:31]} 19. Rfd1 {[%emt 0:02:36]} Re8 {[%emt 0:04:09]} 20. f3 {[%emt 0:04:09]} exd4 {[%emt 0:05:16]} 21. Bxd4 {[%emt 0:00:59]} Nf6 {[%emt 0:00:35]} 22. Rb1 {[%emt 0:02:00]} Nbd7 {[%emt 0:02:38]} 23. Re1 {[%emt 0:06:03]} b6 {[%emt 0:05:07]} 24. e5 {[%emt 0:18:23]} Nh7 {[%emt 0:00:25]} 25. f4 {[%emt 0:01:38]} Nhf8 {[%emt 0:00:57]} 26. f5 {[%emt 0:00:50]} c5 {[%emt 0:00:11]} 27. e6 {[%emt 0:00:05]} fxe6 {[%emt 0:02:13]} 28. fxe6 {[%emt 0:05:58]} Nf6 {[%emt 0:00:33]} 29. e7+ {[%emt 0:01:18]} Ne6 {[%emt 0:00:27]} 30. Bxf6 {[%emt 0:00:10]} gxf6 {[%emt 0:00:17]} 31. Bxe6+ {[%emt 0:00:07]} Bxe6 {[%emt 0:00:12]} 32. Rxe6 {[%emt 0:00:02]} Kf7 {[%emt 0:00:12]} 33. Rbe1 {[%emt 0:01:53]} a6 {[%emt 0:02:58]} 34. Rxb6 {[%emt 0:01:02]} Rxe7 {[%emt 0:00:41]} 35. Rxe7+ {[%emt 0:00:20]} Kxe7 {[%emt 0:00:07]} 36. Nd5+ {[%emt 0:00:06]} Kf7 {[%emt 0:00:31]} 37. Rxf6+ {[%emt 0:00:12]} Kg7 {[%emt 0:00:07]} 38. Rc6 {[%emt 0:00:10]} Rb8 {[%emt 0:00:54]} 39. h3 {[%emt 0:01:34]} Rb5 {[%emt 0:01:40]} 40. Rxa6 {[%emt 0:01:51]} c4 {[%emt 0:00:20]} 41. Nc3 {[%emt 0:00:35]} Rc5 {[%emt 0:00:10]} 42. Kf2 {[%emt 0:01:15]} Rf5+ {[%emt 0:00:44]} 43. Ke3 {[%emt 0:01:01]} Rg5 {[%emt 0:00:35]} 44. g4 {[%emt 0:00:16]} h5 {[%emt 0:00:17]} 45. Kf4 {[%emt 0:00:00]} Rc5 {[%emt 0:00:12]} 46. Rf6 {[%emt 0:02:05]} Ra5 {[%emt 0:00:45]} 47. Rc6 {[%emt 0:00:44]} 1-0

[Event "White Rook U14 Final 2019"]
[Site "Sochi"]
[Date "2019.06.06"]
[Round "4.10"]
[White "Munkhzul, Davaakhuu"]
[Black "Fomkin, Dmitry"]
[Result "1-0"]
[ECO "B68"]
[WhiteElo "1806"]
[BlackElo "1733"]
[Annotator "NA RC"]
[PlyCount "97"]
[EventDate "2019.06.02"]
[EventCountry "RUS"]
[SourceTitle "playchess.com"]
[Source "ChessBase"]
[SourceQuality "1"]
[TimeControl "5400+30"]

1. e4 {[%emt 0:00:00]} c5 {[%emt 0:00:00]} 2. Nf3 {[%emt 0:00:00]} d6 {[%emt 0:00:00]} 3. d4 {[%emt 0:00:00]} cxd4 {[%emt 0:00:10]} 4. Nxd4 {[%emt 0:00:00]} Nf6 {[%emt 0:00:00]} 5. Nc3 {[%emt 0:00:00]} Nc6 {[%emt 0:00:00]} 6. Bg5 {[%emt 0:00:33]} e6 {[%emt 0:00:00]} 7. f4 {[%emt 0:00:30]} a6 {[%emt 0:01:10]} 8. Qd2 {[%emt 0:00:50]} Bd7 {[%emt 0:00:37]} 9. O-O-O {[%emt 0:01:35]} Be7 {[%emt 0:00:00]} 10. Nf3 {[%emt 0:02:31]} b5 {[%emt 0:05:42]} 11. e5 {[%emt 0:02:57]} b4 {[%emt 0:03:09]} 12. exf6 {[%emt 0:00:18]} bxc3 {[%emt 0:00:08]} 13. Qxc3 {[%emt 0:00:05]} gxf6 {[%emt 0:00:34]} 14. Bh6 {[%emt 0:01:49]} Rg8 {[%emt 0:00:24]} 15. Bd3 {[%emt 0:00:54]} Qb6 {[%emt 0:02:36]} 16. Bxh7 {[%emt 0:03:54]} Rh8 {[%emt 0:00:20]} 17. Ng5 {[%emt 0:00:26]} Nb4 {[%emt 0:00:43]} 18. Kb1 {[%emt 0:02:40]} Rc8 {[%emt 0:00:15]} 19. Qh3 {[%emt 0:01:12]} fxg5 {[%emt 0:01:54]} 20. Bg7 {[%emt 0:01:38]} g4 {[%emt 0:00:42]} 21. Qh5 {[%emt 0:02:55]} Rc5 {[%emt 0:00:19]} 22. f5 {[%emt 0:04:39]} Rxf5 {[%emt 0:00:53]} 23. Qh6 {[%emt 0:01:44]} Bg5 {[%emt 0:00:00]} 24. Qh5 {[%emt 0:00:12]} Qa5 {[%emt 0:03:30]} 25. a3 {[%emt 0:03:07]} Bf4 {[%emt 0:00:39]} 26. Qxg4 {[%emt 0:06:04]} Rxh7 {[%emt 0:00:24]} 27. axb4 {[%emt 0:00:20]} Qd8 {[%emt 0:01:51]} 28. Bf6 {[%emt 0:01:30]} Qxf6 {[%emt 0:00:59]} 29. Qg8+ {[%emt 0:00:07]} Ke7 {[%emt 0:00:03]} 30. Qxh7 {[%emt 0:00:07]} Be5 {[%emt 0:00:45]} 31. g4 {[%emt 0:04:11]} Rf2 {[%emt 0:01:23]} 32. Qd3 {[%emt 0:01:22]} Bb5 {[%emt 0:00:48]} 33. Qe3 {[%emt 0:02:12]} Kf8 {[%emt 0:02:22]} 34. g5 {[%emt 0:09:34]} Qf5 {[%emt 0:00:00]} 35. Rd2 {[%emt 0:02:55]} Rf1+ {[%emt 0:00:00]} 36. Rd1 {[%emt 0:04:20]} Rf3 {[%emt 0:00:03]} 37. Qb6 {[%emt 0:19:27]} Rb3 {[%emt 0:00:22]} 38. Rd4 {[%emt 0:00:51]} Qf2 {[%emt 0:04:47]} 39. Rhd1 {[%emt 0:02:56]} Bxd4 {[%emt 0:00:46]} 40. Rxd4 {[%emt 0:00:04]} Re3 {[%emt 0:03:11]} 41. Qxd6+ {[%emt 0:01:22]} Kg7 {[%emt 0:00:33]} 42. Qc5 {[%emt 0:01:00]} Re1+ {[%emt 0:00:09]} 43. Ka2 {[%emt 0:15:51]} Re2 {[%emt 0:00:20]} 44. h4 {[%emt 0:00:33]} Rxc2 {[%emt 0:00:17]} 45. Qe5+ {[%emt 0:01:55]} Kh7 {[%emt 0:01:09]} 46. Rd8 {[%emt 0:00:03]} Bc4+ {[%emt 0:01:03]} 47. Kb1 {[%emt 0:00:36]} Re2 {[%emt 0:00:23]} 48. Rh8+ {[%emt 0:00:04]} Kg6 {[%emt 0:03:16]} 49. h5# {[%emt 0:00:10]} 1-0

[Event "White Rook U14 Final 2019"]
[Site "Sochi"]
[Date "2019.06.06"]
[Round "4.11"]
[White "Ponomarev, Andrey A."]
[Black "Aldar Burentegsh"]
[Result "1-0"]
[ECO "B38"]
[WhiteElo "1919"]
[BlackElo "1812"]
[Annotator "NA RC"]
[PlyCount "195"]
[EventDate "2019.06.02"]
[EventCountry "RUS"]
[SourceTitle "playchess.com"]
[Source "ChessBase"]
[SourceQuality "1"]
[TimeControl "5400+30"]

1. e4 {[%emt 0:00:00]} c5 {[%emt 0:00:00]} 2. Nf3 {[%emt 0:00:00]} Nc6 {[%emt 0:00:00]} 3. d4 {[%emt 0:00:00]} cxd4 {[%emt 0:00:00]} 4. Nxd4 {[%emt 0:00:00]} g6 {[%emt 0:00:00]} 5. c4 {[%emt 0:00:00]} Bg7 {[%emt 0:00:00]} 6. Be3 {[%emt 0:00:00]} Nf6 {[%emt 0:00:00]} 7. Nc3 {[%emt 0:00:14]} O-O {[%emt 0:00:05]} 8. Be2 {[%emt 0:00:53]} d6 {[%emt 0:00:11]} 9. O-O {[%emt 0:01:01]} Bd7 {[%emt 0:00:05]} 10. Qd2 {[%emt 0:00:20]} Rc8 {[%emt 0:00:48]} 11. b3 {[%emt 0:00:05]} Ne5 {[%emt 0:00:49]} 12. h3 {[%emt 0:00:54]} Bc6 {[%emt 0:00:24]} 13. f4 {[%emt 0:01:00]} Ned7 {[%emt 0:00:03]} 14. Nxc6 {[%emt 0:00:28]} bxc6 {[%emt 0:00:20]} 15. Rad1 {[%emt 0:00:45]} Kh8 {[%emt 0:03:59]} 16. Bd4 {[%emt 0:00:29]} Qa5 {[%emt 0:01:36]} 17. Bf3 {[%emt 0:02:55]} Rfd8 {[%emt 0:00:00]} 18. Ne2 {[%emt 0:14:19]} Qc7 {[%emt 0:01:52]} 19. Bc3 {[%emt 0:06:33]} e5 {[%emt 0:01:44]} 20. fxe5 {[%emt 0:00:00]} dxe5 {[%emt 0:00:08]} 21. Qe3 {[%emt 0:02:42]} Bf8 {[%emt 0:03:41]} 22. b4 {[%emt 0:00:56]} Be7 {[%emt 0:07:34]} 23. c5 {[%emt 0:00:46]} Nf8 {[%emt 0:25:22]} 24. Qg5 {[%emt 0:01:49]} Re8 {[%emt 0:00:41]} 25. Rd6 {[%emt 0:22:21]} N6d7 {[%emt 0:09:00]} 26. Bxe5+ {[%emt 0:00:27]} f6 {[%emt 0:00:09]} 27. Bxf6+ {[%emt 0:00:33]} Bxf6 {[%emt 0:04:09]} 28. Rxf6 {[%emt 0:00:37]} Nxf6 {[%emt 0:00:07]} 29. Qxf6+ {[%emt 0:00:00]} Qg7 {[%emt 0:00:06]} 30. Bg4 {[%emt 0:01:28]} Rc7 {[%emt 0:00:59]} 31. Qd6 {[%emt 0:01:28]} Kg8 {[%emt 0:03:48]} 32. a4 {[%emt 0:07:53]} a6 {[%emt 0:01:59]} 33. Ng3 {[%emt 0:07:49]} Qe7 {[%emt 0:03:34]} 34. e5 {[%emt 0:00:34]} Rd8 {[%emt 0:02:09]} 35. Qxe7 {[%emt 0:12:38]} Rxe7 {[%emt 0:01:00]} 36. Bf3 {[%emt 0:01:38]} Rb8 {[%emt 0:00:27]} 37. Rb1 {[%emt 0:00:48]} Rxe5 {[%emt 0:00:50]} 38. Bxc6 {[%emt 0:00:20]} Rxc5 {[%emt 0:00:00]} 39. Bb5 {[%emt 0:00:09]} Rc3 {[%emt 0:01:24]} 40. Ne4 {[%emt 0:01:06]} Re3 {[%emt 0:00:25]} 41. Bc4+ {[%emt 0:00:00]} Kg7 {[%emt 0:01:09]} 42. Nc5 {[%emt 0:00:33]} Rc3 {[%emt 0:00:31]} 43. Nxa6 {[%emt 0:00:00]} Rd8 {[%emt 0:00:17]} 44. Bf1 {[%emt 0:00:00]} Ne6 {[%emt 0:00:58]} 45. b5 {[%emt 0:00:00]} Nc5 {[%emt 0:01:34]} 46. Nxc5 {[%emt 0:00:09]} Rxc5 {[%emt 0:00:00]} 47. a5 {[%emt 0:00:04]} Rb8 {[%emt 0:00:28]} 48. a6 {[%emt 0:00:11]} Rb6 {[%emt 0:00:19]} 49. Be2 {[%emt 0:00:33]} Rc7 {[%emt 0:00:07]} 50. Rf1 {[%emt 0:03:30]} h6 {[%emt 0:00:39]} 51. Rf3 {[%emt 0:00:34]} Rc2 {[%emt 0:00:36]} 52. Bd3 {[%emt 0:00:25]} Rc7 {[%emt 0:00:14]} 53. Kf2 {[%emt 0:01:05]} Re6 {[%emt 0:00:33]} 54. Bf1 {[%emt 0:00:10]} Rc2+ {[%emt 0:00:45]} 55. Kg3 {[%emt 0:00:03]} Rc7 {[%emt 0:00:06]} 56. Rb3 {[%emt 0:00:33]} Rb6 {[%emt 0:00:09]} 57. Ra3 {[%emt 0:00:04]} Ra7 {[%emt 0:00:07]} 58. Rf3 {[%emt 0:00:31]} Re7 {[%emt 0:00:36]} 59. Bd3 {[%emt 0:00:21]} Rc7 {[%emt 0:00:13]} 60. Kf2 {[%emt 0:00:07]} Re6 {[%emt 0:00:05]} 61. Re3 {[%emt 0:00:38]} Rd6 {[%emt 0:02:24]} 62. Ke2 {[%emt 0:00:00]} Kf6 {[%emt 0:00:00]} 63. Re4 {[%emt 0:01:09]} Rcd7 {[%emt 0:00:00]} 64. Bc4 {[%emt 0:00:56]} Ra7 {[%emt 0:00:27]} 65. Ke3 {[%emt 0:00:00]} g5 {[%emt 0:00:12]} 66. Rd4 {[%emt 0:00:54]} Rb6 {[%emt 0:03:02]} 67. Kd3 {[%emt 0:00:00]} Ke5 {[%emt 0:00:29]} 68. g3 {[%emt 0:00:01]} h5 {[%emt 0:00:38]} 69. Rd5+ {[%emt 0:00:38]} Kf6 {[%emt 0:00:05]} 70. Kc3 {[%emt 0:00:51]} Rc7 {[%emt 0:00:47]} 71. Kb4 {[%emt 0:00:00]} Rb8 {[%emt 0:00:12]} 72. Rc5 {[%emt 0:00:44]} Ra7 {[%emt 0:00:00]} 73. Ka5 {[%emt 0:00:00]} Rd7 {[%emt 0:00:18]} 74. Bd5 {[%emt 0:01:20]} Ke7 {[%emt 0:00:07]} 75. Bb3 {[%emt 0:01:03]} Rd3 {[%emt 0:00:56]} 76. Ba4 {[%emt 0:00:21]} Kd6 {[%emt 0:00:51]} 77. Rxg5 {[%emt 0:00:05]} h4 {[%emt 0:00:13]} 78. gxh4 {[%emt 0:00:07]} Re3 {[%emt 0:00:11]} 79. a7 {[%emt 0:00:30]} Ra8 {[%emt 0:00:38]} 80. b6 {[%emt 0:00:32]} Re7 {[%emt 0:00:28]} 81. Ka6 {[%emt 0:00:09]} Re4 {[%emt 0:00:02]} 82. Rg6+ {[%emt 0:00:07]} Kc5 {[%emt 0:00:44]} 83. Bc6 {[%emt 0:00:36]} Rb4 {[%emt 0:00:24]} 84. Bxa8 {[%emt 0:00:00]} Ra4+ {[%emt 0:00:31]} 85. Kb7 {[%emt 0:00:49]} Rxh4 {[%emt 0:00:08]} 86. Rg5+ {[%emt 0:01:09]} Kd6 {[%emt 0:00:18]} 87. Ka6 {[%emt 0:00:00]} Ra4+ {[%emt 0:00:32]} 88. Ra5 {[%emt 0:00:19]} Rh4 {[%emt 0:00:07]} 89. b7 {[%emt 0:00:00]} Rh6 {[%emt 0:00:00]} 90. b8=Q+ {[%emt 0:00:39]} Kd7+ {[%emt 0:00:14]} 91. Kb5 {[%emt 0:00:15]} Rh5+ {[%emt 0:00:00]} 92. Kb4 {[%emt 0:00:00]} Rh4+ {[%emt 0:00:00]} 93. Kc5 {[%emt 0:00:00]} Rh5+ {[%emt 0:00:00]} 94. Bd5 {[%emt 0:00:40]} Rxd5+ {[%emt 0:00:00]} 95. Kxd5 {[%emt 0:00:21]} Ke7 {[%emt 0:00:29]} 96. Qd6+ {[%emt 0:00:23]} Kf7 {[%emt 0:00:00]} 97. a8=R {[%emt 0:00:13]} Kg7 {[%emt 0:00:16]} 98. R5a7# {[%emt 0:00:00]} 1-0

[Event "White Rook U14 Final 2019"]
[Site "Sochi"]
[Date "2019.06.06"]
[Round "4.12"]
[White "Unurzul, Davaakhuu"]
[Black "Namay, Viktoria"]
[Result "1-0"]
[ECO "B13"]
[WhiteElo "1442"]
[BlackElo "1359"]
[Annotator "NA RC"]
[PlyCount "87"]
[EventDate "2019.06.02"]
[EventCountry "RUS"]
[SourceTitle "playchess.com"]
[Source "ChessBase"]
[SourceQuality "1"]
[TimeControl "5400+30"]

1. e4 {[%emt 0:00:00]} c6 {[%emt 0:00:00]} 2. Nf3 {[%emt 0:00:00]} d5 {[%emt 0:00:00]} 3. exd5 {[%emt 0:00:00]} cxd5 {[%emt 0:00:00]} 4. d4 {[%emt 0:00:02]} Nc6 {[%emt 0:00:00]} 5. Bb5 {[%emt 0:00:58]} e6 {[%emt 0:00:13]} 6. Nc3 {[%emt 0:02:10]} Bd6 {[%emt 0:01:49]} 7. Be3 {[%emt 0:02:03]} Nge7 {[%emt 0:00:30]} 8. Qd2 {[%emt 0:00:30]} O-O {[%emt 0:01:36]} 9. O-O {[%emt 0:06:36]} a6 {[%emt 0:01:39]} 10. Be2 {[%emt 0:04:19]} Bc7 {[%emt 0:03:10]} 11. Bf4 {[%emt 0:08:29]} f6 {[%emt 0:00:26]} 12. Bxc7 {[%emt 0:01:56]} Qxc7 {[%emt 0:00:07]} 13. Rad1 {[%emt 0:00:44]} Rd8 {[%emt 0:00:15]} 14. Rfe1 {[%emt 0:02:32]} e5 {[%emt 0:02:37]} 15. dxe5 {[%emt 0:01:38]} fxe5 {[%emt 0:00:51]} 16. Qg5 {[%emt 0:05:02]} e4 {[%emt 0:04:11]} 17. Nd4 {[%emt 0:04:11]} Rd6 {[%emt 0:04:34]} 18. Nxc6 {[%emt 0:14:23]} bxc6 {[%emt 0:00:34]} 19. Qe5 {[%emt 0:00:58]} Rd7 {[%emt 0:04:18]} 20. Qe6+ {[%emt 0:05:36]} Kh8 {[%emt 0:03:27]} 21. f3 {[%emt 0:07:08]} Ng8 {[%emt 0:01:21]} 22. Qg4 {[%emt 0:00:30]} Rf7 {[%emt 0:06:38]} 23. Qh4 {[%emt 0:03:32]} Qb6+ {[%emt 0:04:24]} 24. Kh1 {[%emt 0:01:33]} Qxb2 {[%emt 0:09:37]} 25. Na4 {[%emt 0:00:26]} Qxc2 {[%emt 0:02:25]} 26. Nb6 {[%emt 0:00:28]} Rb8 {[%emt 0:10:16]} 27. Qd8 {[%emt 0:00:55]} Qc5 {[%emt 0:09:29]} 28. Nxc8 {[%emt 0:00:34]} Rbb7 {[%emt 0:09:06]} 29. Nd6 {[%emt 0:00:52]} Rfd7 {[%emt 0:09:56]} 30. Nxb7 {[%emt 0:03:32]} Rxd8 {[%emt 0:03:42]} 31. Nxc5 {[%emt 0:01:42]} e3 {[%emt 0:00:30]} 32. Bxa6 {[%emt 0:00:09]} Re8 {[%emt 0:06:06]} 33. Rd3 {[%emt 0:00:11]} e2 {[%emt 0:00:11]} 34. Rd2 {[%emt 0:00:18]} Nf6 {[%emt 0:00:10]} 35. Rdxe2 {[%emt 0:00:28]} Rxe2 {[%emt 0:01:35]} 36. Rxe2 {[%emt 0:00:13]} Kg8 {[%emt 0:00:03]} 37. Bb7 {[%emt 0:00:11]} h5 {[%emt 0:00:04]} 38. Bxc6 {[%emt 0:00:02]} g5 {[%emt 0:00:02]} 39. Re5 {[%emt 0:00:14]} g4 {[%emt 0:00:53]} 40. Bxd5+ {[%emt 0:00:14]} Nxd5 {[%emt 0:00:08]} 41. Rxd5 {[%emt 0:00:09]} gxf3 {[%emt 0:00:11]} 42. gxf3 {[%emt 0:00:11]} h4 {[%emt 0:00:18]} 43. Rd7 {[%emt 0:00:05]} h3 {[%emt 0:00:05]} 44. a4 {[%emt 0:00:07]} 1-0